[Event "Live Chess"]
[Site "Chess.com"]
[Date "2023.05.20"]
[Round "-"]
[White "ACx04"]
[Black "Outspanner"]
[Result "0-1"]
[WhiteElo "433"]
[BlackElo "1579"]
[TimeControl "300"]
[EndTime "9:54:44 PDT"]
[Termination "Outspanner won by checkmate"]

1. e4 {[%clk 0:04:58.5]} 1... d6 {[%clk 0:04:57.5]} 2. Bc4 {[%clk 0:04:56.5]}
2... e6 {[%clk 0:04:54.9]} 3. Nf3 {[%clk 0:04:55.3]} 3... d5 {[%clk 0:04:52.4]}
4. exd5 {[%clk 0:04:53.7]} 4... exd5 {[%clk 0:04:51.7]} 5. Bb3 {[%clk
0:04:52.2]} 5... Nf6 {[%clk 0:04:46.5]} 6. d4 {[%clk 0:04:50.9]} 6... Bd6 {[%clk
0:04:29.1]} 7. Nc3 {[%clk 0:04:44.6]} 7... c6 {[%clk 0:04:27.3]} 8. O-O {[%clk
0:04:43]} 8... O-O {[%clk 0:04:26.6]} 9. g3 {[%clk 0:04:39.6]} 9... Bg4 {[%clk
0:04:22.1]} 10. Qe2 {[%clk 0:04:35.2]} 10... Re8 {[%clk 0:04:18.2]} 11. Kg2
{[%clk 0:04:32.1]} 11... Rxe2 {[%clk 0:04:14.8]} 12. h3 {[%clk 0:04:29.9]} 12...
Bxf3+ {[%clk 0:04:08.4]} 13. Kxf3 {[%clk 0:04:28]} 13... Re8 {[%clk 0:04:07.9]}
14. Bf4 {[%clk 0:04:22.8]} 14... Bxf4 {[%clk 0:04:05.3]} 15. gxf4 {[%clk
0:04:21.7]} 15... Ne4 {[%clk 0:04:01.9]} 16. Rg1 {[%clk 0:03:59.8]} 16... Nd2+
{[%clk 0:03:55.9]} 17. Kg4 {[%clk 0:03:54.6]} 17... Qd7+ {[%clk 0:03:50]} 18. f5
{[%clk 0:03:51.5]} 18... Na6 {[%clk 0:03:31.7]} 19. a4 {[%clk 0:03:34.2]} 19...
g6 {[%clk 0:03:28.2]} 20. Ba2 {[%clk 0:03:21.9]} 20... Qxf5+ {[%clk 0:03:26.4]}
21. Kg3 {[%clk 0:03:16.4]} 21... Qf3+ {[%clk 0:03:13.7]} 22. Kh2 {[%clk
0:03:13.5]} 22... Qxf2+ {[%clk 0:03:11.2]} 23. Rg2 {[%clk 0:03:11.2]} 23... Qf4+
{[%clk 0:03:07.2]} 24. Rg3 {[%clk 0:03:06.5]} 24... Ne4 {[%clk 0:03:01.7]} 25.
Nxe4 {[%clk 0:03:03.6]} 25... Rxe4 {[%clk 0:02:59.2]} 26. Rg1 {[%clk 0:02:57.4]}
26... h5 {[%clk 0:02:43.1]} 27. c3 {[%clk 0:02:53.4]} 27... h4 {[%clk 0:02:42]}
28. Bb1 {[%clk 0:02:43.5]} 28... hxg3+ {[%clk 0:02:39]} 29. Rxg3 {[%clk
0:02:41.4]} 29... Re2+ {[%clk 0:02:37.4]} 30. Kh1 {[%clk 0:02:34.6]} 30... Qf1+
{[%clk 0:02:35.4]} 31. Rg1 {[%clk 0:02:31.7]} 31... Qxh3# {[%clk 0:02:34.8]} 0-1

[Event "Live Chess"]
[Site "Chess.com"]
[Date "2023.05.20"]
[Round "-"]
[White "TheSmoulderingMaster"]
[Black "Jio85"]
[Result "1-0"]
[WhiteElo "1805"]
[BlackElo "2012"]
[TimeControl "300"]
[EndTime "9:54:47 PDT"]
[Termination "TheSmoulderingMaster won by resignation"]

1. e4 {[%clk 0:04:59.3]} 1... Nf6 {[%clk 0:04:58.9]} 2. e5 {[%clk 0:04:58.4]}
2... Nd5 {[%clk 0:04:58.5]} 3. d4 {[%clk 0:04:57.8]} 3... d6 {[%clk 0:04:58.1]}
4. c4 {[%clk 0:04:57.1]} 4... Nb6 {[%clk 0:04:57.3]} 5. f4 {[%clk 0:04:55.4]}
5... dxe5 {[%clk 0:04:55.7]} 6. fxe5 {[%clk 0:04:54.9]} 6... c5 {[%clk
0:04:55.2]} 7. d5 {[%clk 0:04:52.4]} 7... e6 {[%clk 0:04:54.6]} 8. d6 {[%clk
0:04:50.2]} 8... Nc6 {[%clk 0:04:54.1]} 9. Nf3 {[%clk 0:04:47.8]} 9... g6 {[%clk
0:04:53.4]} 10. Bg5 {[%clk 0:04:45.7]} 10... Qd7 {[%clk 0:04:47.8]} 11. Bf6
{[%clk 0:04:43.6]} 11... Rg8 {[%clk 0:04:46.5]} 12. Nc3 {[%clk 0:04:43]} 12...
Bg7 {[%clk 0:04:45.8]} 13. Nb5 {[%clk 0:04:37.6]} 13... Bxf6 {[%clk 0:04:36.6]}
14. exf6 {[%clk 0:04:36.5]} 14... Kf8 {[%clk 0:04:23.1]} 15. Bd3 {[%clk
0:04:29.9]} 15... a5 {[%clk 0:04:04.1]} 16. Qd2 {[%clk 0:04:28.1]} 16... a4
{[%clk 0:03:51.9]} 17. Qh6+ {[%clk 0:04:26.5]} 17... Ke8 {[%clk 0:03:50.6]} 18.
Qxh7 {[%clk 0:04:21.8]} 18... Rf8 {[%clk 0:03:49.7]} 19. Qg7 {[%clk 0:04:13.7]}
19... Ra5 {[%clk 0:03:43.2]} 20. Nc7+ {[%clk 0:04:12.5]} 1-0

[Event "Live Chess"]
[Site "Chess.com"]
[Date "2023.05.20"]
[Round "-"]
[White "PackedNote"]
[Black "seabuck"]
[Result "1-0"]
[WhiteElo "797"]
[BlackElo "1797"]
[TimeControl "300"]
[EndTime "9:54:49 PDT"]
[Termination "PackedNote won - game abandoned"]

1. e4 {[%clk 0:04:58.8]} 1... c6 {[%clk 0:04:58.3]} 2. Nf3 {[%clk 0:04:58]} 2...
d5 {[%clk 0:04:57.2]} 3. exd5 {[%clk 0:04:52.4]} 3... cxd5 {[%clk 0:04:56]} 4.
d4 {[%clk 0:04:52]} 4... Nc6 {[%clk 0:04:55]} 5. c3 {[%clk 0:04:50.2]} 5... Nf6
{[%clk 0:04:53.9]} 6. Bb5 {[%clk 0:04:48.5]} 6... a6 {[%clk 0:04:45.2]} 7. Ba4
{[%clk 0:04:47.7]} 7... b5 {[%clk 0:04:42.4]} 8. Bc2 {[%clk 0:04:44]} 8... Bg4
{[%clk 0:04:40.4]} 9. Be3 {[%clk 0:04:36.6]} 9... e6 {[%clk 0:04:38.6]} 10. Nbd2
{[%clk 0:04:33.6]} 10... Bd6 {[%clk 0:04:32.2]} 11. h3 {[%clk 0:04:31.1]} 11...
Bh5 {[%clk 0:04:30.5]} 12. O-O {[%clk 0:04:29.3]} 12... Qc7 {[%clk 0:04:27.9]}
13. Re1 {[%clk 0:04:11.1]} 13... O-O {[%clk 0:04:23.8]} 14. Qc1 {[%clk
0:03:50.9]} 14... b4 {[%clk 0:04:12.3]} 15. a4 {[%clk 0:03:41.2]} 15... bxc3
{[%clk 0:04:08]} 16. bxc3 {[%clk 0:03:36.2]} 16... Rfc8 {[%clk 0:04:03.2]} 17.
Bd3 {[%clk 0:03:19]} 17... Na5 {[%clk 0:03:50.8]} 18. g4 {[%clk 0:02:59.2]}
18... Bg6 {[%clk 0:03:47.3]} 19. Bxg6 {[%clk 0:02:55.9]} 19... hxg6 {[%clk
0:03:45.3]} 20. Rb1 {[%clk 0:02:47.5]} 20... Qxc3 {[%clk 0:03:38.4]} 21. Qxc3
{[%clk 0:02:42.5]} 21... Rxc3 {[%clk 0:03:36.2]} 22. Ne5 {[%clk 0:02:34.5]}
22... Rc2 {[%clk 0:03:16.2]} 23. f4 {[%clk 0:02:15.5]} 23... Ra2 {[%clk
0:02:37.9]} 24. g5 {[%clk 0:02:08.3]} 24... Bxe5 {[%clk 0:02:30.3]} 25. dxe5
{[%clk 0:02:05.4]} 25... Ne4 {[%clk 0:02:24.7]} 26. Nxe4 {[%clk 0:02:02.1]}
26... dxe4 {[%clk 0:02:23]} 27. Red1 {[%clk 0:01:52.5]} 27... Rxa4 {[%clk
0:02:10.7]} 28. Bd2 {[%clk 0:01:30.7]} 28... Nc4 {[%clk 0:02:05]} 29. Kf2 {[%clk
0:01:23.3]} 29... Ra2 {[%clk 0:01:56.9]} 30. Ke1 {[%clk 0:01:17.6]} 1-0

[Event "Live Chess"]
[Site "Chess.com"]
[Date "2023.05.20"]
[Round "-"]
[White "bedsdrout"]
[Black "lateforthesky"]
[Result "0-1"]
[WhiteElo "434"]
[BlackElo "2077"]
[TimeControl "300"]
[EndTime "9:54:54 PDT"]
[Termination "lateforthesky won by checkmate"]

1. e4 {[%clk 0:04:58]} 1... c5 {[%clk 0:04:58.5]} 2. Bc4 {[%clk 0:04:56.7]} 2...
e6 {[%clk 0:04:55]} 3. Qh5 {[%clk 0:04:55.2]} 3... Nf6 {[%clk 0:04:51.5]} 4. Qf3
{[%clk 0:04:53.4]} 4... Nc6 {[%clk 0:04:49.5]} 5. d3 {[%clk 0:04:45.5]} 5... Ne5
{[%clk 0:04:37.6]} 6. Qg3 {[%clk 0:04:35.8]} 6... Nxc4 {[%clk 0:04:36]} 7. Bg5
{[%clk 0:04:33.6]} 7... Nb6 {[%clk 0:04:19.6]} 8. e5 {[%clk 0:04:32.2]} 8... Be7
{[%clk 0:04:14.5]} 9. Nf3 {[%clk 0:04:24.8]} 9... Nh5 {[%clk 0:03:57.9]} 10. Qh4
{[%clk 0:04:18.3]} 10... Bxg5 {[%clk 0:03:55.6]} 11. Qxg5 {[%clk 0:04:15.3]}
11... Qxg5 {[%clk 0:03:53.1]} 12. Nxg5 {[%clk 0:04:13.9]} 12... h6 {[%clk
0:03:50.4]} 13. Nf3 {[%clk 0:04:05.9]} 13... Nf4 {[%clk 0:03:48.6]} 14. O-O
{[%clk 0:04:04.8]} 14... d6 {[%clk 0:03:41.1]} 15. exd6 {[%clk 0:03:58]} 15...
Bd7 {[%clk 0:03:40.1]} 16. Ne5 {[%clk 0:03:46.9]} 16... f6 {[%clk 0:03:33.2]}
17. Nc3 {[%clk 0:03:44.9]} 17... fxe5 {[%clk 0:03:31.3]} 18. Nb5 {[%clk
0:03:40.2]} 18... Bxb5 {[%clk 0:03:24]} 19. Rad1 {[%clk 0:03:31.9]} 19... Bc6
{[%clk 0:03:21.3]} 20. d4 {[%clk 0:03:29]} 20... cxd4 {[%clk 0:03:18.4]} 21. c3
{[%clk 0:03:26.5]} 21... O-O {[%clk 0:03:12.5]} 22. g3 {[%clk 0:03:17.8]} 22...
Nh3# {[%clk 0:03:10]} 0-1

[Event "Live Chess"]
[Site "Chess.com"]
[Date "2023.05.20"]
[Round "-"]
[White "Sergio2StepsAheado"]
[Black "vinni3012"]
[Result "1-0"]
[WhiteElo "986"]
[BlackElo "1862"]
[TimeControl "300"]
[EndTime "9:55:01 PDT"]
[Termination "Sergio2StepsAheado won by resignation"]

1. e4 {[%clk 0:04:57.5]} 1... c6 {[%clk 0:04:58.8]} 2. Nf3 {[%clk 0:04:56.3]}
2... d5 {[%clk 0:04:57.4]} 3. Nc3 {[%clk 0:04:50.2]} 3... dxe4 {[%clk
0:04:54.7]} 4. Nxe4 {[%clk 0:04:49.8]} 4... Nf6 {[%clk 0:04:54.5]} 5. Qe2 {[%clk
0:04:48]} 5... Nxe4 {[%clk 0:04:43.4]} 6. Qxe4 {[%clk 0:04:46.5]} 6... Be6
{[%clk 0:04:43.3]} 7. Be2 {[%clk 0:04:31.9]} 7... Nd7 {[%clk 0:04:29.8]} 8. c3
{[%clk 0:04:30.7]} 8... Bd5 {[%clk 0:04:18.8]} 9. Qf4 {[%clk 0:04:05.7]} 9... e6
{[%clk 0:03:49.7]} 10. d4 {[%clk 0:04:02.5]} 10... Bxf3 {[%clk 0:03:39.2]} 11.
Bxf3 {[%clk 0:03:47.7]} 11... Nf6 {[%clk 0:03:37.6]} 12. O-O {[%clk 0:03:41.1]}
12... Bd6 {[%clk 0:03:32.9]} 13. Qg5 {[%clk 0:03:26.3]} 13... Qe7 {[%clk
0:03:05.9]} 14. Qxg7 {[%clk 0:03:15.6]} 14... O-O-O {[%clk 0:03:02.1]} 15. Bg5
{[%clk 0:03:04.2]} 1-0

[Event "Live Chess"]
[Site "Chess.com"]
[Date "2023.05.20"]
[Round "-"]
[White "JoeyCage"]
[Black "Ocelot32"]
[Result "1-0"]
[WhiteElo "2313"]
[BlackElo "1396"]
[TimeControl "300"]
[EndTime "9:55:04 PDT"]
[Termination "JoeyCage won by resignation"]

1. e4 {[%clk 0:04:57.8]} 1... e6 {[%clk 0:04:57.2]} 2. d4 {[%clk 0:04:56.7]}
2... d5 {[%clk 0:04:55.7]} 3. Nc3 {[%clk 0:04:55.9]} 3... dxe4 {[%clk
0:04:52.6]} 4. Nxe4 {[%clk 0:04:54.9]} 4... Nd7 {[%clk 0:04:51.4]} 5. Nf3 {[%clk
0:04:53.6]} 5... Ngf6 {[%clk 0:04:48.4]} 6. Nxf6+ {[%clk 0:04:52.2]} 6... Nxf6
{[%clk 0:04:47.4]} 7. Bd3 {[%clk 0:04:52.1]} 7... Be7 {[%clk 0:04:44.5]} 8. O-O
{[%clk 0:04:50.6]} 8... b6 {[%clk 0:04:42.7]} 9. Qe2 {[%clk 0:04:49.4]} 9... O-O
{[%clk 0:04:40.2]} 10. Rd1 {[%clk 0:04:48]} 10... Bb7 {[%clk 0:04:37.6]} 11. c3
{[%clk 0:04:45.7]} 11... Qd5 {[%clk 0:04:31.4]} 12. Ne1 {[%clk 0:04:37.7]} 12...
Bd6 {[%clk 0:04:14.8]} 13. Be3 {[%clk 0:04:35.1]} 13... Qh5 {[%clk 0:03:54.7]}
14. Qxh5 {[%clk 0:04:32.8]} 14... Nxh5 {[%clk 0:03:53.5]} 15. g3 {[%clk
0:04:21]} 15... Nf6 {[%clk 0:03:50.1]} 16. c4 {[%clk 0:04:19.1]} 16... Rac8
{[%clk 0:03:44]} 17. c5 {[%clk 0:04:17.5]} 17... bxc5 {[%clk 0:03:39.4]} 18.
dxc5 {[%clk 0:04:16.3]} 18... Be7 {[%clk 0:03:37.8]} 19. Bb5 {[%clk 0:04:11]}
19... Nd5 {[%clk 0:03:33.4]} 20. c6 {[%clk 0:04:06.3]} 20... Nxe3 {[%clk
0:03:24.3]} 21. cxb7 {[%clk 0:03:48.6]} 21... Rb8 {[%clk 0:03:19.2]} 22. fxe3
{[%clk 0:03:47]} 22... Rxb7 {[%clk 0:03:18]} 23. a4 {[%clk 0:03:45.5]} 23... Bc5
{[%clk 0:02:58.4]} 24. Kf2 {[%clk 0:03:43.5]} 24... Rc8 {[%clk 0:02:52.7]} 25.
Kf3 {[%clk 0:03:38.7]} 25... Rb6 {[%clk 0:02:49.3]} 26. Nd3 {[%clk 0:03:35.9]}
26... Be7 {[%clk 0:02:45.5]} 27. Rac1 {[%clk 0:03:31.9]} 27... a6 {[%clk
0:02:40.5]} 28. Bc4 {[%clk 0:03:30.6]} 28... Rd6 {[%clk 0:02:31]} 29. b3 {[%clk
0:03:27.8]} 29... Rcd8 {[%clk 0:02:28.1]} 30. Nf2 {[%clk 0:03:26.3]} 30... g6
{[%clk 0:02:21.3]} 31. Rxd6 {[%clk 0:03:24.5]} 31... Bxd6 {[%clk 0:02:19.7]} 32.
Bxa6 {[%clk 0:03:22.7]} 32... Rb8 {[%clk 0:02:17.9]} 33. Bc4 {[%clk 0:03:21.4]}
33... Kg7 {[%clk 0:02:14.6]} 34. a5 {[%clk 0:03:20.3]} 34... Ra8 {[%clk
0:02:09.9]} 35. a6 {[%clk 0:03:20.2]} 35... Bc5 {[%clk 0:02:08.8]} 36. Ne4
{[%clk 0:03:18.8]} 36... f5 {[%clk 0:02:05.6]} 37. Nxc5 {[%clk 0:03:17.4]} 1-0

[Event "Live Chess"]
[Site "Chess.com"]
[Date "2023.05.20"]
[Round "-"]
[White "YrrriKharkiv"]
[Black "scarletmojito"]
[Result "0-1"]
[WhiteElo "2111"]
[BlackElo "1861"]
[TimeControl "300"]
[EndTime "9:55:08 PDT"]
[Termination "scarletmojito won on time"]

1. d4 {[%clk 0:04:57.9]} 1... Nf6 {[%clk 0:04:58.4]} 2. Nf3 {[%clk 0:04:57.5]}
2... d5 {[%clk 0:04:57.2]} 3. c4 {[%clk 0:04:57]} 3... c6 {[%clk 0:04:54.5]} 4.
Nc3 {[%clk 0:04:56.3]} 4... g6 {[%clk 0:04:52.1]} 5. Bg5 {[%clk 0:04:55.6]} 5...
Bg7 {[%clk 0:04:51.4]} 6. Qb3 {[%clk 0:04:54.1]} 6... dxc4 {[%clk 0:04:49]} 7.
Qxc4 {[%clk 0:04:52.3]} 7... O-O {[%clk 0:04:48.6]} 8. Qb3 {[%clk 0:04:45.5]}
8... Be6 {[%clk 0:04:47.1]} 9. Qc2 {[%clk 0:04:39.4]} 9... Qb6 {[%clk
0:04:41.8]} 10. Rd1 {[%clk 0:04:20.4]} 10... Na6 {[%clk 0:04:38.3]} 11. Nd2
{[%clk 0:04:09.6]} 11... Nb4 {[%clk 0:04:35.4]} 12. Qb1 {[%clk 0:04:05.9]} 12...
Qxd4 {[%clk 0:04:27.2]} 13. Nde4 {[%clk 0:03:44.6]} 13... Qe5 {[%clk 0:04:07.9]}
14. Nxf6+ {[%clk 0:03:43.4]} 14... exf6 {[%clk 0:04:03.6]} 15. Bd2 {[%clk
0:03:26.9]} 15... Rad8 {[%clk 0:03:35.3]} 16. e4 {[%clk 0:03:04.8]} 16... f5
{[%clk 0:03:13.7]} 17. f4 {[%clk 0:03:01.6]} 17... Qc5 {[%clk 0:02:45.8]} 18. e5
{[%clk 0:02:53.8]} 18... Bh6 {[%clk 0:02:20.2]} 19. a3 {[%clk 0:02:29.2]} 19...
Nd5 {[%clk 0:01:52.5]} 20. Nxd5 {[%clk 0:02:12.6]} 20... Qxd5 {[%clk 0:01:43.5]}
21. Be3 {[%clk 0:01:38.5]} 21... Qa5+ {[%clk 0:01:36.9]} 22. Kf2 {[%clk
0:01:13.4]} 22... Qa4 {[%clk 0:01:19.6]} 23. Rxd8 {[%clk 0:00:43.5]} 23... Rxd8
{[%clk 0:01:19.5]} 24. b4 {[%clk 0:00:36.3]} 24... Qxa3 {[%clk 0:01:06.7]} 25.
Be2 {[%clk 0:00:34]} 25... Bf8 {[%clk 0:00:55.6]} 26. b5 {[%clk 0:00:32.6]}
26... Bc5 {[%clk 0:00:51]} 27. Qc1 {[%clk 0:00:24.4]} 27... Qb4 {[%clk
0:00:38.2]} 28. Bxc5 {[%clk 0:00:21.9]} 28... Qe4 {[%clk 0:00:32.9]} 29. Be3
{[%clk 0:00:20.5]} 29... g5 {[%clk 0:00:29.2]} 30. g3 {[%clk 0:00:19.1]} 30...
g4 {[%clk 0:00:27]} 31. Rd1 {[%clk 0:00:17.4]} 31... Bd5 {[%clk 0:00:25.8]} 32.
Rg1 {[%clk 0:00:14.6]} 32... cxb5 {[%clk 0:00:21.2]} 33. Bxa7 {[%clk 0:00:13.5]}
33... Bc6 {[%clk 0:00:19.1]} 34. Qe3 {[%clk 0:00:11.4]} 34... Qxe3+ {[%clk
0:00:17.8]} 35. Bxe3 {[%clk 0:00:10.1]} 35... b4 {[%clk 0:00:17.3]} 36. Rb1
{[%clk 0:00:09.3]} 36... Be4 {[%clk 0:00:14.3]} 37. Rxb4 {[%clk 0:00:08.5]}
37... Kg7 {[%clk 0:00:13.6]} 38. Rxe4 {[%clk 0:00:07.5]} 38... fxe4 {[%clk
0:00:12.6]} 39. f5 {[%clk 0:00:07.1]} 39... f6 {[%clk 0:00:11.6]} 40. e6 {[%clk
0:00:05.9]} 40... Kf8 {[%clk 0:00:11.3]} 41. Bc5+ {[%clk 0:00:05]} 41... Ke8
{[%clk 0:00:10.9]} 42. e7 {[%clk 0:00:04.4]} 42... Rd7 {[%clk 0:00:10.5]} 43.
Bb5 {[%clk 0:00:03.1]} 43... h6 {[%clk 0:00:10.1]} 44. Bxd7+ {[%clk 0:00:02.8]}
44... Kxd7 {[%clk 0:00:09.8]} 45. Ke3 {[%clk 0:00:02.4]} 45... Ke8 {[%clk
0:00:09.7]} 46. Kxe4 {[%clk 0:00:01.9]} 46... b6 {[%clk 0:00:09.6]} 47. Bxb6
{[%clk 0:00:01]} 47... Kxe7 {[%clk 0:00:08.9]} 48. Bc5+ {[%clk 0:00:00.5]} 48...
Kf7 {[%clk 0:00:08.8]} 0-1

[Event "Live Chess"]
[Site "Chess.com"]
[Date "2023.05.20"]
[Round "-"]
[White "Tushinskiy"]
[Black "JackRudd"]
[Result "0-1"]
[WhiteElo "2090"]
[BlackElo "2392"]
[TimeControl "300"]
[EndTime "9:55:22 PDT"]
[Termination "JackRudd won by resignation"]

1. d4 {[%clk 0:04:57.3]} 1... Nf6 {[%clk 0:04:58.5]} 2. c3 {[%clk 0:04:57.2]}
2... e6 {[%clk 0:04:56.8]} 3. Nf3 {[%clk 0:04:57.1]} 3... c5 {[%clk 0:04:55.8]}
4. Bf4 {[%clk 0:04:38.9]} 4... Nc6 {[%clk 0:04:52.8]} 5. e3 {[%clk 0:04:37.6]}
5... d5 {[%clk 0:04:51.1]} 6. Bd3 {[%clk 0:04:36.4]} 6... Bd6 {[%clk 0:04:50]}
7. Bg3 {[%clk 0:04:35.4]} 7... O-O {[%clk 0:04:47.1]} 8. Nbd2 {[%clk 0:04:34.5]}
8... Re8 {[%clk 0:04:43.4]} 9. Ne5 {[%clk 0:04:33.1]} 9... Bxe5 {[%clk
0:04:40.2]} 10. dxe5 {[%clk 0:04:33]} 10... Nd7 {[%clk 0:04:39.4]} 11. f4 {[%clk
0:04:32.2]} 11... f6 {[%clk 0:04:30.2]} 12. exf6 {[%clk 0:04:30.4]} 12... Nxf6
{[%clk 0:04:29]} 13. Qe2 {[%clk 0:04:26.6]} 13... e5 {[%clk 0:04:27.5]} 14. fxe5
{[%clk 0:04:25]} 14... Nxe5 {[%clk 0:04:26.7]} 15. O-O-O {[%clk 0:04:22.9]}
15... Bg4 {[%clk 0:04:24.8]} 16. Nf3 {[%clk 0:04:21.9]} 16... Nxd3+ {[%clk
0:04:21]} 17. Rxd3 {[%clk 0:04:19.8]} 17... Qa5 {[%clk 0:04:18.7]} 18. a3 {[%clk
0:04:17.6]} 18... Bf5 {[%clk 0:04:13.1]} 19. Rd2 {[%clk 0:04:14.2]} 19... b5
{[%clk 0:04:11.2]} 20. Bd6 {[%clk 0:04:11]} 20... Qb6 {[%clk 0:04:07.2]} 21. Be5
{[%clk 0:04:08.6]} 21... b4 {[%clk 0:04:03.1]} 22. Bxf6 {[%clk 0:04:07.6]} 22...
Qxf6 {[%clk 0:04:02.1]} 23. axb4 {[%clk 0:04:05]} 23... cxb4 {[%clk 0:04:01.1]}
24. cxb4 {[%clk 0:04:04.3]} 24... Rab8 {[%clk 0:03:52]} 25. Rxd5 {[%clk
0:04:02.8]} 25... Rxb4 {[%clk 0:03:50.9]} 26. Nd4 {[%clk 0:04:02.2]} 26... Rxd4
{[%clk 0:03:45.3]} 27. Rxd4 {[%clk 0:04:00.8]} 27... Qxd4 {[%clk 0:03:43.9]} 28.
exd4 {[%clk 0:04:00.7]} 28... Rxe2 {[%clk 0:03:42.4]} 29. Rd1 {[%clk 0:04:00.2]}
29... Rc2+ {[%clk 0:03:41.3]} 30. Kb1 {[%clk 0:03:59]} 30... Rc6+ {[%clk
0:03:36.6]} 31. Ka2 {[%clk 0:03:57.8]} 31... Bc2 {[%clk 0:03:35.6]} 0-1

[Event "Live Chess"]
[Site "Chess.com"]
[Date "2023.05.20"]
[Round "-"]
[White "Daniel_Gliddon_FA"]
[Black "Singapourfeuj"]
[Result "0-1"]
[WhiteElo "954"]
[BlackElo "2274"]
[TimeControl "300"]
[EndTime "9:55:44 PDT"]
[Termination "Singapourfeuj won by resignation"]

1. e4 {[%clk 0:04:55.6]} 1... d5 {[%clk 0:04:58.8]} 2. exd5 {[%clk 0:04:52.1]}
2... Nf6 {[%clk 0:04:57.9]} 3. d4 {[%clk 0:04:41.1]} 3... Nxd5 {[%clk
0:04:55.7]} 4. Nf3 {[%clk 0:04:37.1]} 4... Nc6 {[%clk 0:04:53.6]} 5. c4 {[%clk
0:04:32.3]} 5... Nb6 {[%clk 0:04:52.5]} 6. d5 {[%clk 0:04:28.4]} 6... Nb8 {[%clk
0:04:51]} 7. Nc3 {[%clk 0:04:18.3]} 7... c6 {[%clk 0:04:49.8]} 8. dxc6 {[%clk
0:04:09.4]} 8... Qxd1+ {[%clk 0:04:47.9]} 9. Nxd1 {[%clk 0:04:08.1]} 9... Nxc6
{[%clk 0:04:47.1]} 10. Bd3 {[%clk 0:04:01.3]} 10... Bg4 {[%clk 0:04:45.3]} 11.
Be2 {[%clk 0:03:54.5]} 11... O-O-O {[%clk 0:04:40.3]} 12. O-O {[%clk 0:03:50.9]}
12... e6 {[%clk 0:04:39.4]} 13. b3 {[%clk 0:03:45.2]} 13... Bc5 {[%clk
0:04:34.1]} 14. Bd2 {[%clk 0:03:39]} 14... Bxf3 {[%clk 0:04:31.3]} 15. Bxf3
{[%clk 0:03:35.7]} 15... Rxd2 {[%clk 0:04:30.1]} 16. Nc3 {[%clk 0:03:29.1]}
16... Bd4 {[%clk 0:04:28.5]} 17. Bxc6 {[%clk 0:03:21.4]} 17... Bxc3 {[%clk
0:04:24.2]} 18. Bxb7+ {[%clk 0:03:14.1]} 18... Kxb7 {[%clk 0:04:22.8]} 19. Rac1
{[%clk 0:03:10.8]} 19... Bd4 {[%clk 0:04:21.9]} 20. c5 {[%clk 0:03:09.1]} 20...
Nd5 {[%clk 0:04:21]} 21. c6+ {[%clk 0:03:06.5]} 21... Kc7 {[%clk 0:04:20.3]} 22.
Rfd1 {[%clk 0:02:56.5]} 22... Rxd1+ {[%clk 0:04:18.9]} 23. Rxd1 {[%clk
0:02:54.8]} 23... e5 {[%clk 0:04:18.1]} 24. Kf1 {[%clk 0:02:42.3]} 24... f6
{[%clk 0:04:16.6]} 25. Ke2 {[%clk 0:02:40.5]} 25... Nc3+ {[%clk 0:04:15.1]} 0-1

[Event "Live Chess"]
[Site "Chess.com"]
[Date "2023.05.20"]
[Round "-"]
[White "Conradical12"]
[Black "ramses-IIG"]
[Result "1-0"]
[WhiteElo "1509"]
[BlackElo "744"]
[TimeControl "300"]
[EndTime "9:55:47 PDT"]
[Termination "Conradical12 won by checkmate"]

1. e4 {[%clk 0:04:58.8]} 1... d5 {[%clk 0:04:59.3]} 2. exd5 {[%clk 0:04:57.2]}
2... Qxd5 {[%clk 0:04:59.2]} 3. Nc3 {[%clk 0:04:56]} 3... Qe6+ {[%clk
0:04:59.1]} 4. Nge2 {[%clk 0:04:54.5]} 4... Qg6 {[%clk 0:04:59]} 5. d3 {[%clk
0:04:53.5]} 5... c6 {[%clk 0:04:54.8]} 6. Be3 {[%clk 0:04:52.5]} 6... Nd7 {[%clk
0:04:52.5]} 7. g3 {[%clk 0:04:52.4]} 7... e5 {[%clk 0:04:51.4]} 8. Bg2 {[%clk
0:04:52.3]} 8... Bb4 {[%clk 0:04:48.6]} 9. O-O {[%clk 0:04:51.7]} 9... h5 {[%clk
0:04:47]} 10. f4 {[%clk 0:04:51.2]} 10... exf4 {[%clk 0:04:44.5]} 11. Nxf4
{[%clk 0:04:49.5]} 11... Qf5 {[%clk 0:04:35.6]} 12. Nfd5 {[%clk 0:04:45]} 12...
Qg4 {[%clk 0:04:00]} 13. Qxg4 {[%clk 0:04:40.4]} 13... hxg4 {[%clk 0:03:59.9]}
14. Nc7+ {[%clk 0:04:39.7]} 14... Kd8 {[%clk 0:03:56.7]} 15. Nxa8 {[%clk
0:04:38.9]} 15... Ne5 {[%clk 0:03:50.3]} 16. Rae1 {[%clk 0:04:35.8]} 16... Nf6
{[%clk 0:03:43.7]} 17. Bb6+ {[%clk 0:04:29.6]} 17... Kd7 {[%clk 0:03:40.2]} 18.
Rxe5 {[%clk 0:04:29.5]} 18... Bxc3 {[%clk 0:03:32.3]} 19. bxc3 {[%clk
0:04:27.1]} 19... Kd6 {[%clk 0:03:29.9]} 20. Bc7+ {[%clk 0:04:25.2]} 20... Kd7
{[%clk 0:03:26.8]} 21. Be4 {[%clk 0:04:17.8]} 21... Nxe4 {[%clk 0:03:16.7]} 22.
Rxf7# {[%clk 0:04:14.3]} 1-0

[Event "Live Chess"]
[Site "Chess.com"]
[Date "2023.05.20"]
[Round "-"]
[White "smoggyrabbit"]
[Black "hturner40"]
[Result "0-1"]
[WhiteElo "1625"]
[BlackElo "1874"]
[TimeControl "300"]
[EndTime "9:55:51 PDT"]
[Termination "hturner40 won on time"]

1. d4 {[%clk 0:04:59.1]} 1... Nf6 {[%clk 0:04:57.9]} 2. Nf3 {[%clk 0:04:57.6]}
2... g6 {[%clk 0:04:55.9]} 3. e3 {[%clk 0:04:56.5]} 3... Bg7 {[%clk 0:04:54.5]}
4. Be2 {[%clk 0:04:52.2]} 4... O-O {[%clk 0:04:51.5]} 5. O-O {[%clk 0:04:51.2]}
5... d6 {[%clk 0:04:50.6]} 6. b3 {[%clk 0:04:49.6]} 6... Nbd7 {[%clk 0:04:43.7]}
7. Bb2 {[%clk 0:04:48.6]} 7... Ne4 {[%clk 0:04:42.3]} 8. Nbd2 {[%clk 0:04:35.9]}
8... Ndf6 {[%clk 0:04:40.5]} 9. c4 {[%clk 0:04:32.5]} 9... Bg4 {[%clk
0:04:28.9]} 10. h3 {[%clk 0:04:25.1]} 10... Nxd2 {[%clk 0:04:16.1]} 11. Qxd2
{[%clk 0:04:20]} 11... Ne4 {[%clk 0:04:11.8]} 12. Qc2 {[%clk 0:04:10.2]} 12...
Bf5 {[%clk 0:04:06.7]} 13. Bd3 {[%clk 0:03:38.1]} 13... d5 {[%clk 0:03:37.9]}
14. cxd5 {[%clk 0:03:22.2]} 14... Qxd5 {[%clk 0:03:36.4]} 15. Ne5 {[%clk
0:01:31.7]} 15... Nd6 {[%clk 0:03:25.2]} 16. Bxf5 {[%clk 0:01:22]} 16... gxf5
{[%clk 0:03:21.1]} 17. Qxc7 {[%clk 0:01:12.9]} 17... Rac8 {[%clk 0:03:16]} 18.
Qxe7 {[%clk 0:01:07.6]} 18... Rce8 {[%clk 0:02:31.8]} 19. Qh4 {[%clk 0:00:42]}
19... Ne4 {[%clk 0:02:10.1]} 20. Nd7 {[%clk 0:00:29.1]} 20... Qxd7 {[%clk
0:02:04.5]} 21. Ba3 {[%clk 0:00:21.5]} 21... Nd6 {[%clk 0:01:52.4]} 22. Qg3
{[%clk 0:00:16.5]} 22... Re6 {[%clk 0:01:49.9]} 23. Rac1 {[%clk 0:00:13.3]}
23... Rg6 {[%clk 0:01:46.3]} 24. Qf4 {[%clk 0:00:12]} 24... Bh6 {[%clk
0:01:39.2]} 25. Qe5 {[%clk 0:00:09.8]} 25... Re8 {[%clk 0:01:35.4]} 26. Qc5
{[%clk 0:00:08.2]} 26... f4 {[%clk 0:01:27.7]} 27. Qc7 {[%clk 0:00:07]} 27...
Qxh3 {[%clk 0:01:25.3]} 0-1